bitfinex/quotes_ETHUSD_20240621
["timestamp","ask_amount","ask_price","bid_price","bid_amount"]
[1718939990947,3.78563758,3515.6,3514.6,3.0]
[1718939990948,2.56238988,3514.7,3514.6,3.0]
[1718939991457,2.56238988,3514.7,3514.6,3.63298]
[1718939993351,2.56237912,3514.7,3514.6,3.63298]
[1718939993553,2.06961383,3514.7,3514.6,3.63298]
[1718939993754,2.56238115,3514.7,3514.6,3.63298]
[1718939996465,2.56236595,3514.7,3514.6,3.63298]
[1718939998293,2.2982,3516.3,3514.6,5.43945302]
[1718939998508,4.48501084,3516.2,3515.1,0.876]
[1718939998657,2.56203598,3516.1,3515.2,2.331]
[1718939998985,2.553718,3516.0,3515.2,5.331]
[1718939999191,0.49268956,3515.9,3515.2,5.331]
[1718939999391,0.876,3516.2,3515.2,5.331]
[1718939999392,0.49268956,3516.1,3515.2,5.9517]
[1718939999687,2.56193246,3516.0,3515.2,5.9517]
[1718939999850,2.56193246,3515.9,3515.2,5.9517]
[1718940000057,0.876,3516.2,3515.2,5.9517]
[1718940000058,2.56193246,3515.8,3515.2,5.9517]
[1718940000262,2.56193246,3515.7,3515.2,5.9517]
[1718940000519,2.56193246,3515.6,3515.2,3.0]
[1718940000699,2.56193246,3515.5,3514.8,6.3702]
[1718940000901,2.56193246,3515.4,3514.8,6.3702]
[1718940001060,2.56193246,3515.3,3514.9,0.70615325]
[1718940001262,2.56193246,3515.2,3514.9,3.70615325]
[1718940001589,2.06925314,3515.1,3514.9,3.70615325]
[1718940001795,2.3711,3515.7,3514.9,3.70615325]
[1718940001796,2.06925314,3515.0,3514.9,3.70615325]
[1718940001976,2.0693087,3515.6,3514.9,3.70615325]
[1718940002180,0.49269236,3515.5,3514.9,3.0]
[1718940002378,2.0693087,3515.4,3514.7,0.69133246]
[1718940002593,0.49269236,3515.3,3514.7,0.69133246]
[1718940002804,2.0693087,3515.2,3514.7,0.69133246]
[1718940003006,0.49269236,3515.1,3514.8,1.43593325]
[1718940003303,2.0693087,3515.0,3514.8,1.43593325]
[1718940003657,2.0693087,3514.9,3514.8,1.43593325]
[1718940003862,2.0693087,3514.9,3514.8,2.31193325]
[1718940004076,2.3711,3515.7,3514.8,5.31193325]
[1718940004361,2.56201059,3515.6,3515.0,0.876]
[1718940004575,2.56201059,3515.5,3515.0,0.876]
[1718940004778,2.56201059,3515.4,3515.1,2.2789]
[1718940005006,3.2634,3516.0,3515.1,6.20012598]
[1718940005304,2.5619647,3515.9,3515.1,6.20012598]
[1718940005462,2.5619647,3515.8,3515.1,6.20012598]
[1718940005665,2.5619647,3515.7,3515.2,0.7076126]
[1718940005892,2.5619647,3515.6,3515.2,3.7076126]
[1718940006121,2.5619647,3515.5,3515.2,3.7076126]
[1718940006407,2.5619647,3515.4,3515.3,0.68625126]
[1718940006958,2.5619647,3515.4,3515.3,1.56225126]
[1718940007227,2.3267,3516.4,3515.4,2.3379]
[1718940007509,2.56158569,3516.3,3515.4,5.3379]
[1718940007712,2.56158569,3516.2,3515.5,1.72701513]
[1718940007998,2.56158569,3516.1,3515.5,4.72701513]
[1718940008315,2.56171856,3516.0,3515.5,4.72701513]
[1718940008512,0.876,3516.3,3515.6,0.91959796]
[1718940008663,2.06899784,3516.2,3515.6,3.91959796]
[1718940008867,0.49261853,3516.1,3515.6,3.91959796]
[1718940009091,2.06899784,3516.0,3515.6,3.91959796]
[1718940009296,2.56162372,3515.9,3515.6,3.91959796]
[1718940009462,2.3267,3516.4,3515.6,3.91959796]
[1718940009463,2.06900378,3515.8,3515.7,0.79845131]
[1718940009901,0.49262868,3515.8,3515.7,0.79845131]
[1718940010117,2.56163246,3516.2,3515.7,0.79845131]
[1718940010338,3.2027,3516.4,3515.7,0.79845131]
[1718940010339,2.56163246,3516.1,3515.7,0.85533268]
[1718940010611,2.56163246,3516.0,3515.7,0.85533268]
[1718940010766,2.56163246,3515.9,3515.6,3.0]
[1718940010960,2.56162496,3515.8,3515.5,4.72701513]
[1718940011172,2.3267,3516.4,3515.5,4.72701513]
[1718940011405,2.5616078,3516.3,3515.6,0.05688134]
[1718940011561,2.5616078,3516.2,3515.6,0.85666099]
[1718940011802,2.5616078,3516.1,3515.6,3.85666099]
[1718940012013,2.5616078,3516.0,3515.6,3.85666099]
[1718940012166,2.5616078,3515.9,3515.6,3.85666099]
[1718940012362,2.06899092,3515.8,3515.6,3.85666099]
[1718940012621,2.06899591,3515.7,3515.6,3.79977965]
[1718940012800,2.06899339,3516.3,3515.7,0.87406948]
[1718940013005,2.56157704,3516.2,3515.7,0.87406948]
[1718940013212,2.56157704,3516.1,3515.7,0.87406948]
[1718940013394,2.06896571,3516.0,3515.7,0.05688135]
[1718940013721,2.06896571,3515.9,3515.6,0.05688215]
[1718940013961,2.3267,3516.4,3515.6,0.05688215]
[1718940014071,2.56151624,3516.3,3515.6,0.05688215]
[1718940014269,2.56151624,3516.2,3515.6,0.68396036]
[1718940014471,0.49258971,3516.1,3515.6,0.68396036]
[1718940014772,2.06887527,3516.0,3515.6,0.68396036]
[1718940014999,2.3267,3516.4,3515.7,0.68978604]
[1718940015000,2.06887527,3515.9,3515.7,0.68978604]
[1718940015216,2.3267,3516.4,3515.7,0.68978604]
[1718940015381,2.561465,3516.3,3515.7,0.68978604]
[1718940015679,2.561465,3516.2,3515.7,0.68978604]
[1718940015882,2.561465,3516.1,3515.7,0.68978604]
[1718940016087,2.06887558,3516.0,3515.6,0.05688215]
[1718940016318,2.06887558,3515.9,3515.6,0.05688215]
[1718940016615,2.3267,3516.4,3515.6,0.05688215]
[1718940016814,2.56157832,3516.3,3515.6,0.05688215]
[1718940017117,2.56157832,3516.2,3515.6,0.68396037]
[1718940017304,2.56157832,3516.1,3515.6,0.68396037]
[1718940017502,2.3267,3516.4,3515.6,0.68396037]
[1718940017708,2.56157857,3516.3,3515.6,0.68396037]
[1718940018004,2.56157857,3516.2,3515.6,0.68396037]
[1718940018169,2.56157857,3516.1,3515.6,0.68396037]
[1718940018522,2.56157857,3516.0,3515.6,0.68396037]
[1718940018807,5.01875799,3515.9,3515.5,3.0]
[1718940019008,4.63074385,3515.8,3515.3,3.0]
[1718940019212,2.4571,3515.9,3515.3,3.0]
[1718940019213,4.63074385,3515.7,3515.3,3.0]
[1718940019383,4.63074385,3515.6,3515.3,3.0]
[1718940019578,2.4571,3515.9,3515.3,4.3584]
[1718940019579,4.13831796,3515.5,3515.3,4.3584]
[1718940019784,2.4571,3515.9,3515.0,3.0]
[1718940019994,4.63108194,3515.8,3515.0,0.876]
[1718940020202,4.63108194,3515.7,3515.0,3.876]
[1718940020508,2.4571,3515.9,3515.0,5.5344]
[1718940020509,4.63108194,3515.6,3515.0,5.5344]
[1718940020714,4.63108629,3515.5,3515.0,5.5344]
[1718940020918,2.06915232,3515.4,3515.0,5.5344]
[1718940021216,2.4571,3515.9,3515.0,5.5344]
[1718940021425,4.63108423,3515.8,3515.0,5.5344]
[1718940021585,4.63108445,3515.7,3515.1,1.52424]
[1718940021786,4.63108445,3515.6,3515.1,1.52424]
[1718940021988,4.63108445,3515.5,3515.0,3.876]
[1718940022209,2.06915833,3515.4,3515.0,3.876]
[1718940022404,2.4571,3515.9,3515.0,3.876]
[1718940022728,4.63108329,3515.8,3515.1,1.3584]
[1718940022940,2.4571,3515.9,3515.1,1.3584]
[1718940022941,4.63108609,3515.7,3515.1,1.3584]
[1718940023089,4.63108609,3515.6,3515.1,1.3584]
[1718940023288,2.4571,3515.9,3515.1,1.3584]
[1718940023289,4.63108609,3515.5,3515.1,1.3584]
[1718940023490,2.06915819,3515.4,3515.1,1.3584]
[1718940023721,2.4571,3515.9,3515.1,1.3584]
[1718940024028,4.63108226,3515.8,3515.2,0.75724]
[1718940024325,4.63107845,3515.7,3515.2,0.75724]
[1718940024499,4.63107845,3515.6,3515.2,0.75724]
[1718940024688,4.63107845,3515.5,3515.2,0.75724]
[1718940024888,2.56183499,3515.4,3515.2,0.75724]
[1718940025115,2.4571,3515.9,3515.2,0.75724]
[1718940025322,4.63108081,3515.8,3515.1,4.3584]
[1718940025518,4.63108081,3515.7,3515.2,3.0]
[1718940025821,4.63108081,3515.6,3515.1,1.3584]
[1718940026021,4.63108081,3515.5,3515.1,1.3584]
[1718940026320,2.56183534,3515.4,3515.2,1.63324]
[1718940026544,2.4571,3515.9,3515.2,4.63324]
[1718940026732,4.63094145,3515.8,3515.2,4.63324]
[1718940026910,2.06915685,3515.7,3515.2,4.63324]
[1718940027113,4.63094463,3515.6,3515.2,4.63324]
[1718940027418,2.4571,3515.9,3515.3,0.599164]
[1718940027419,2.56180834,3515.5,3515.3,0.599164]
[1718940027654,2.4571,3515.9,3515.3,0.599164]
[1718940027808,4.63088217,3515.8,3515.3,0.599164]
[1718940028146,4.63088217,3515.7,3515.3,0.599164]
[1718940028343,2.56177068,3515.6,3515.3,0.599164]
[1718940028547,2.2815,3516.5,3515.4,3.30776869]
[1718940028713,4.6306137,3516.4,3515.5,3.0]
[1718940028911,4.6306137,3516.3,3515.6,0.02386733]
[1718940029112,4.6306137,3516.2,3515.6,0.02386733]
[1718940029335,4.6306137,3516.1,3515.6,0.02386733]
[1718940029658,4.6306137,3516.0,3515.6,0.02386733]
[1718940029809,4.6306137,3515.9,3515.6,1.53064406]
[1718940030010,2.56165266,3515.8,3515.6,0.89986733]
[1718940030243,2.2815,3516.5,3515.6,0.876]
[1718940030244,2.06904693,3515.7,3515.6,0.876]
[1718940030453,0.49261513,3515.7,3515.6,0.876]
[1718940030657,2.06904693,3515.7,3515.6,1.50439]
[1718940030816,0.49261513,3515.7,3515.6,1.50439]
[1718940031012,2.56166206,3516.1,3515.6,1.50439]
[1718940031213,4.63070113,3516.0,3515.6,1.50439]
[1718940031512,4.63070113,3515.9,3515.6,1.50439]
[1718940031723,4.63070113,3515.8,3515.6,1.50439]
[1718940031961,2.56166206,3515.7,3515.6,1.50439]
[1718940032454,2.06904693,3515.7,3515.6,1.50439]
[1718940033239,2.06904693,3516.4,3515.6,1.50439]
[1718940033425,2.56153984,3516.3,3515.6,1.50439]
[1718940033627,4.63058677,3516.2,3515.7,0.691229]
[1718940033922,4.63058677,3516.1,3515.7,0.691229]
[1718940034125,4.63058677,3516.0,3515.7,0.691229]
[1718940034361,4.63058677,3515.9,3515.8,0.4567229]
[1718940034860,2.56165074,3515.9,3515.8,0.4567229]
[1718940036215,2.06904693,3515.9,3515.8,0.4567229]
[1718940036425,4.63051104,3515.9,3515.8,0.4567229]
[1718940038037,4.63051104,3515.9,3515.8,1.3327229]
[1718940039543,4.63053336,3515.9,3515.8,1.3327229]
[1718940039864,4.63053334,3515.9,3515.8,1.3327229]
[1718940040466,2.06904693,3515.9,3515.8,1.3327229]
[1718940040824,2.06889276,3515.9,3515.8,1.3327229]
[1718940041017,4.13793969,3516.2,3515.8,1.3327229]
[1718940041225,4.63052501,3516.1,3515.8,1.3327229]
[1718940041604,4.63052501,3516.0,3515.8,1.3327229]
[1718940041769,4.13793969,3515.9,3515.8,1.3327229]
[1718940042253,4.63053125,3515.9,3515.8,1.3327229]
[1718940042467,2.06904693,3515.9,3515.8,1.3327229]
[1718940042669,4.63059102,3515.9,3515.8,0.4567229]
[1718940044084,4.13798639,3515.9,3515.8,0.4567229]
[1718940044423,4.63058079,3515.9,3515.8,0.4567229]
[1718940044640,4.63058079,3515.9,3515.5,3.876]
[1718940044967,4.63058079,3515.8,3515.5,3.876]
[1718940045121,4.13798639,3515.7,3515.5,3.876]
[1718940045357,2.06904693,3515.6,3515.5,3.876]
[1718940045567,2.06904693,3516.4,3515.5,5.24139]
[1718940045735,4.63064984,3516.3,3515.5,5.24139]
[1718940045944,4.63064984,3516.2,3515.5,5.24139]
[1718940046150,4.63064984,3516.1,3515.5,5.24139]
[1718940046468,4.63064984,3516.0,3515.6,0.764929]
[1718940046623,4.63064984,3515.9,3515.6,0.764929]
[1718940046828,4.13803461,3515.8,3515.6,0.764929]
[1718940047126,4.13803461,3515.7,3515.6,0.764929]
[1718940047451,4.13803461,3515.7,3515.6,1.640929]
[1718940048728,2.06904693,3515.7,3515.6,1.640929]
[1718940048939,4.13795324,3515.7,3515.6,1.640929]
[1718940051906,2.06904693,3515.7,3515.6,1.640929]
[1718940052074,4.13797877,3515.7,3515.6,1.640929]
[1718940055402,4.13797171,3515.7,3515.6,1.640929]
[1718940056425,4.6305761,3515.7,3515.6,1.640929]
[1718940058318,4.63059272,3515.7,3515.6,1.640929]
[1718940058632,4.63059207,3515.7,3515.6,1.640929]
[1718940058832,4.6305931,3515.7,3515.6,1.640929]
[1718940059340,4.63059271,3515.7,3515.6,1.640929]
[1718940059508,4.63058446,3515.7,3515.6,1.640929]
[1718940061027,4.63059168,3515.7,3515.6,1.640929]
[1718940063713,2.06904693,3515.7,3515.6,1.640929]
[1718940063902,2.56151844,3515.7,3515.6,1.640929]
[1718940064098,4.63056537,3515.7,3515.6,1.640929]
[1718940067060,4.63057209,3515.7,3515.6,1.640929]
[1718940067360,4.63057165,3515.7,3515.6,1.640929]
[1718940069820,2.273,3517.0,3515.7,2.4726]
[1718940070021,2.06841489,3516.9,3515.9,2.4726]
[1718940070222,4.13675257,3516.8,3516.2,2.4726]
[1718940070524,2.273,3517.2,3516.3,1.83176873]
[1718940070525,2.06841489,3516.7,3516.3,1.83176873]
[1718940070752,2.06841489,3516.6,3516.3,0.84203684]
[1718940070956,2.06841489,3516.5,3516.3,3.84203684]
[1718940071149,2.273,3517.2,3516.4,0.876]
[1718940071338,4.62901257,3517.1,3516.9,0.876]
[1718940071521,4.62901257,3517.0,3516.9,0.876]
[1718940072454,4.13656581,3517.0,3516.9,0.876]
[1718940073082,2.06828942,3517.0,3516.9,0.876]
[1718940073241,4.13652347,3517.1,3516.9,0.876]
[1718940073446,2.06828942,3517.0,3516.3,11.21203684]
[1718940073642,2.273,3517.2,3517.0,0.876]
[1718940073876,4.13648173,3517.1,3517.0,0.876]
[1718940074245,4.13647659,3517.1,3517.0,0.876]
[1718940074861,2.06824697,3517.1,3517.0,0.876]
[1718940075067,2.06824697,3517.1,3516.4,3.0]
[1718940075068,2.3564,3517.0,3516.4,3.0]
[1718940075267,4.13644804,3516.9,3516.6,0.876]
[1718940075490,4.13644804,3516.8,3516.6,0.876]
[1718940075644,4.13644804,3516.7,3516.6,0.876]
[1718940076368,2.06824697,3516.7,3516.6,0.876]
[1718940076676,2.06853179,3516.7,3516.6,0.876]
[1718940076888,4.13677876,3516.8,3516.6,0.876]
[1718940077189,2.3381,3516.6,3516.4,3.876]
[1718940077356,4.13677876,3516.5,3516.4,3.876]
[1718940079567,4.13691563,3516.5,3516.4,3.876]
[1718940080357,4.13691563,3516.5,3516.4,3.0]
[1718940080559,2.2693,3516.4,3515.4,19.65]
[1718940080856,2.4001,3516.2,3515.5,3.0]
[1718940081088,2.4001,3516.0,3515.5,3.0]
[1718940081365,2.4001,3516.0,3515.4,7.37]
[1718940081366,7.02955846,3515.9,3515.4,7.37]
[1718940081588,0.876,3515.6,3515.4,7.37]
[1718940081810,4.13691563,3515.5,3514.8,7.37]
[1718940081977,4.62945846,3515.4,3514.8,9.335]
[1718940082183,4.62945846,3515.3,3514.8,9.335]
[1718940082493,4.47144697,3515.2,3514.8,9.335]
[1718940082677,4.47144697,3515.2,3514.9,3.0]
[1718940082678,4.13786493,3515.1,3514.9,3.0]
[1718940082999,4.13786493,3515.0,3514.6,0.876]
[1718940083237,4.13786493,3514.9,3514.4,3.737]
[1718940083384,2.06824697,3514.8,3514.4,3.737]
[1718940083590,4.13800713,3514.7,3514.4,3.0]
[1718940083931,3.2792,3515.2,3514.4,3.0]
[1718940083932,4.13800713,3514.6,3514.4,3.0]
[1718940084136,4.13800713,3514.5,3514.4,3.0]
[1718940084334,4.13800713,3514.5,3514.3,7.37]
[1718940084508,4.13828687,3514.4,3514.3,7.37]
[1718940084917,2.06824697,3514.4,3514.3,7.37]
[1718940085226,2.06824697,3515.0,3514.3,7.37]
[1718940085429,2.56290796,3514.9,3514.3,7.37]
[1718940085635,4.63116148,3514.8,3514.3,7.37]
[1718940085803,4.13829462,3514.7,3514.3,7.37]
[1718940085993,4.13829462,3514.6,3514.3,7.37]
[1718940086193,2.06824697,3514.5,3514.3,7.37]
[1718940086393,1.711,3515.8,3514.3,7.37]
[1718940086394,0.876,3515.0,3514.3,7.37]
[1718940086638,2.4037,3514.8,3514.3,7.37]
[1718940086822,4.14008815,3514.7,3514.1,0.876]
[1718940087047,0.55,3516.4,3514.5,0.876]
[1718940087048,2.3418,3515.3,3514.5,0.876]
[1718940087259,4.13946024,3515.2,3514.5,0.876]
[1718940087445,2.06972736,3515.1,3514.4,0.876]
[1718940087768,2.06972736,3515.0,3514.4,0.876]
[1718940087971,2.06972736,3514.9,3514.4,0.876]
[1718940088170,2.3418,3515.3,3514.4,0.876]
[1718940088470,4.13956979,3515.2,3514.4,0.876]
[1718940088762,2.06979201,3515.1,3514.4,0.876]
[1718940089750,2.06979201,3515.1,3514.0,3.0]
[1718940089962,2.06979201,3515.1,3514.3,0.876]
[1718940090563,2.06979201,3515.1,3514.0,3.0]
[1718940090763,0.876,3514.8,3514.0,3.0]
[1718940090965,0.876,3514.6,3514.0,3.0]
[1718940091165,2.06979201,3514.5,3514.0,3.0]
[1718940091398,0.4656937,3514.7,3514.0,3.0]
[1718940091701,2.94622008,3514.6,3514.0,3.0]
[1718940091873,2.07022008,3514.5,3514.0,3.0]
[1718940092261,0.4656937,3514.7,3514.0,3.0]
[1718940092459,0.876,3514.5,3514.0,3.0]
[1718940092705,0.876,3514.3,3514.0,3.0]
[1718940093005,0.876,3514.3,3513.5,12.28]
[1718940093154,0.876,3514.3,3513.4,7.37]
[1718940093354,2.2898,3514.4,3513.4,7.37]
[1718940093554,2.60200931,3514.4,3513.4,7.37]
[1718940094558,2.60200931,3514.4,3513.5,3.0]
[1718940096875,2.60200931,3514.4,3513.0,2.4615]
[1718940101318,2.60200931,3514.4,3512.7,3.0]
[1718940101498,2.60200931,3514.4,3512.7,5.3406]
[1718940101700,2.60200931,3514.4,3512.8,0.8586426]
[1718940104846,2.60200931,3514.4,3512.7,7.4456]
[1718940104847,2.2501,3513.4,3512.7,2.1413574]
[1718940105132,2.2501,3513.4,3511.5,2.495]
[1718940105133,3.29321983,3513.3,3511.5,2.495]
[1718940105431,2.2501,3513.2,3511.5,2.495]
[1718940105713,0.36311,3513.1,3511.6,0.46]
[1718940107075,0.85625904,3513.1,3511.6,3.46]
[1718940107290,0.36311,3513.1,3511.6,3.46]
[1718940107497,0.85625935,3513.1,3511.6,3.46]
[1718940110333,2.2501,3513.2,3511.9,2.105]
[1718940110520,0.49308233,3513.1,3512.8,2.105]
[1718940110730,2.2501,3513.2,3512.9,0.2105]
[1718940111320,0.31220931,3514.4,3512.9,0.2105]
[1718940111321,2.3327,3514.1,3512.9,0.2105]
[1718940111520,2.3327,3514.1,3512.8,9.475]
[1718940111734,0.98598585,3514.0,3512.9,3.0]
[1718940113113,0.49299246,3514.0,3512.9,3.0]
[1718940113637,0.98593754,3514.0,3512.9,3.0]
[1718940116833,0.98598761,3514.0,3512.9,3.0]
[1718940117041,0.98598761,3514.0,3512.9,4.037]
[1718940119119,0.49299515,3514.0,3512.9,4.037]
[1718940119795,2.3327,3514.1,3512.9,4.037]
[1718940120011,0.49299015,3514.0,3512.9,4.037]
[1718940122242,0.49300304,3514.0,3512.9,4.037]
[1718940122410,0.49300304,3514.0,3513.0,1.1407]
[1718940123112,0.49300304,3514.0,3513.0,3.5201]
[1718940123297,0.49300304,3514.0,3513.1,3.0]
[1718940124942,2.07050555,3513.9,3513.1,3.0]
[1718940125097,2.07050555,3513.9,3512.9,3.0]
[1718940125297,0.49299016,3513.8,3513.0,0.29034054]
[1718940125613,2.07050555,3513.7,3513.0,0.29034054]
[1718940125861,0.49299396,3513.8,3513.0,0.29034054]
[1718940126004,2.07053913,3513.7,3512.9,3.0]
[1718940126359,2.56355868,3513.6,3512.9,3.0]
[1718940126638,2.56355868,3513.5,3512.9,3.0]
[1718940126848,2.3771,3513.8,3512.9,3.0]
[1718940126849,2.56355868,3513.4,3512.9,3.0]
[1718940127177,2.56355868,3513.3,3512.9,3.0]
[1718940127439,2.56366223,3513.2,3512.9,3.0]
[1718940127597,0.49301955,3513.1,3512.6,2.2689]
[1718940127799,0.49301955,3513.7,3512.6,3.80252018]
[1718940128026,2.07064438,3513.6,3512.7,3.0]
[1718940128236,0.49301955,3513.5,3512.7,3.0]
[1718940128451,2.07064438,3513.4,3512.7,3.0]
[1718940128762,0.49302703,3513.3,3512.7,3.0]
[1718940129059,2.07064438,3513.2,3512.7,3.0]
[1718940129245,0.49302703,3513.1,3512.7,3.0]
[1718940129431,2.07064438,3513.0,3512.7,3.0]
[1718940130067,1.92864438,3513.0,3512.7,3.0]
[1718940130356,2.4494,3513.2,3512.6,1.53362018]
[1718940130542,0.4930473,3513.1,3512.5,3.0]
[1718940131665,0.49304611,3513.1,3512.5,3.0]
[1718940132018,0.46504611,3513.1,3512.5,3.0]
[1718940133937,2.4494,3513.2,3512.5,3.0]
[1718940139540,4.1604,3513.2,3512.5,3.0]
[1718940139741,2.4683,3513.0,3512.5,3.0]
[1718940140836,4.1793,3513.0,3512.5,3.0]
[1718940141041,0.55,3512.9,3512.6,3.0]
[1718940141251,0.55,3512.9,3511.8,3.0]
[1718940141450,4.1793,3513.0,3511.9,2.4461]
[1718940141654,2.4683,3513.0,3512.0,1.28161]
[1718940141974,2.4683,3513.0,3512.0,4.28161]
[1718940142207,0.49312905,3512.9,3512.0,4.28161]
[1718940144051,2.4683,3513.0,3512.0,4.28161]
[1718940144258,0.49312178,3512.9,3512.0,4.28161]
[1718940144565,0.49312178,3512.9,3512.1,0.672771]
[1718940145083,0.49312614,3512.9,3512.1,0.672771]
[1718940145772,0.49312175,3512.9,3512.1,0.672771]
[1718940147599,0.49312709,3512.9,3512.1,0.672771]
[1718940149268,0.49312709,3513.1,3512.1,0.672771]
[1718940149463,0.49312709,3513.1,3512.2,0.7400481]
[1718940150207,2.07105977,3513.0,3512.2,0.7400481]
[1718940150504,0.49312709,3512.9,3512.2,0.7400481]
[1718940150712,2.07105977,3512.8,3512.2,0.7400481]
[1718940150866,0.49310563,3512.7,3512.2,0.7400481]
[1718940151065,2.07105977,3512.6,3512.3,0.50216581]
[1718940151267,0.49310563,3512.5,3512.3,0.50216581]
[1718940151472,2.07105977,3512.4,3512.3,0.50216581]
[1718940152513,2.07105977,3513.0,3512.3,0.50216581]
[1718940152810,2.56416254,3512.9,3512.1,2.4453]
[1718940153011,2.07105977,3512.8,3512.2,2.64953]
[1718940153321,2.2773,3513.8,3512.3,2.4453]
[1718940153613,2.56376985,3513.7,3513.0,0.877]
[1718940153912,2.56376941,3513.6,3513.0,3.0]
[1718940154107,0.49301137,3513.5,3512.6,0.877]
[1718940154287,2.56376941,3513.5,3512.6,3.877]
[1718940154469,2.56376941,3513.4,3512.6,3.877]
[1718940154676,2.56376941,3513.3,3512.6,3.877]
[1718940154876,2.56376941,3513.2,3512.6,3.877]
[1718940155178,2.56376941,3513.1,3512.6,3.877]
[1718940155385,2.56376941,3513.0,3512.6,3.0]
[1718940155599,2.56376941,3512.9,3512.7,0.54453]
[1718940155775,2.50503,3513.8,3511.1,0.59664867]
[1718940155776,1.711,3512.6,3511.1,0.59664867]
[1718940155984,1.711,3512.6,3510.6,1.49162167]
[1718940155985,1.711,3512.4,3510.9,3.0]
[1718940156203,2.314,3512.1,3510.6,2.4759]
[1718940156477,2.56385096,3512.0,3510.6,2.4759]
[1718940156697,2.07075804,3511.9,3510.6,2.4759]
[1718940156908,2.50923384,3511.8,3510.6,2.72349]
[1718940157206,2.56406202,3511.7,3510.6,2.72349]
[1718940157405,2.56406202,3511.6,3510.6,2.72349]
[1718940157708,2.56406202,3511.5,3510.7,0.272349]
[1718940157890,2.56406202,3511.4,3510.7,0.272349]
[1718940158085,2.56406202,3511.3,3510.7,0.272349]
[1718940158292,2.56406202,3511.2,3510.7,0.272349]
[1718940158596,0.49330409,3511.1,3510.7,0.272349]
[1718940158794,0.4384758,3511.8,3510.7,3.272349]
[1718940158992,2.07188744,3511.7,3510.8,0.5748249]
[1718940159198,2.56519153,3511.6,3510.8,0.5748249]
[1718940159396,2.314,3512.1,3510.8,0.5748249]
[1718940159397,2.56519153,3511.5,3510.8,0.5748249]
[1718940159594,2.56519153,3511.4,3510.8,0.5748249]
[1718940159904,2.07188744,3511.3,3510.7,3.0]
[1718940160210,0.49330267,3511.9,3510.6,2.4759]
[1718940160375,2.07187858,3511.8,3510.6,2.4759]
[1718940160574,0.89580267,3512.0,3510.7,0.24759]
[1718940160575,2.56518125,3511.7,3510.7,0.24759]
[1718940160777,2.56518125,3511.6,3510.7,3.24759]
[1718940161003,2.56518125,3511.5,3510.7,3.24759]
[1718940161210,2.56518125,3511.4,3510.7,3.24759]
[1718940161386,0.4025,3512.0,3510.7,3.24759]
[1718940161387,2.56518125,3511.3,3510.8,0.572349]
[1718940161587,0.49330131,3511.2,3510.7,3.24759]
[1718940161787,0.89580131,3512.0,3510.7,3.0]
[1718940162007,2.07186039,3511.9,3510.6,2.4759]
[1718940162224,0.49330131,3511.8,3510.6,2.4759]
[1718940162436,2.07186039,3511.7,3510.6,2.4759]
[1718940162613,0.49330131,3511.6,3510.6,2.4759]
[1718940162798,2.07186039,3511.5,3510.7,1.28459]
[1718940163000,0.49329718,3511.4,3510.7,4.28459]
[1718940163413,0.89579718,3512.0,3510.7,4.28459]
[1718940163628,2.0718545,3511.9,3510.7,4.28459]
[1718940163800,1.02146235,3511.8,3510.7,4.28459]
[1718940163998,2.0718545,3511.7,3510.7,4.28459]
[1718940164198,0.49329718,3511.6,3510.7,4.28459]
[1718940164397,2.0718545,3511.5,3510.7,4.28459]
[1718940164610,0.49329718,3511.4,3510.7,4.28459]
[1718940164813,0.49329718,3511.4,3510.8,0.676049]
[1718940165033,0.52816517,3511.8,3510.8,0.676049]
[1718940165234,2.07185006,3511.7,3510.8,0.676049]
[1718940165436,2.56514724,3511.6,3510.8,0.676049]
[1718940165729,2.56514724,3511.5,3510.7,4.28459]
[1718940166060,2.07185006,3511.4,3510.7,4.28459]
[1718940166330,2.314,3512.1,3510.7,4.28459]
[1718940166331,0.49329701,3512.0,3510.7,4.28459]
[1718940166499,2.07182195,3511.9,3510.7,4.28459]
[1718940166699,0.49329701,3511.8,3510.7,4.28459]
[1718940166896,2.07182195,3511.7,3510.7,4.28459]
[1718940167123,0.49328847,3511.6,3510.7,4.28459]
[1718940167321,2.07182195,3511.5,3510.8,0.676049]
[1718940167526,0.49328847,3511.4,3510.8,0.676049]
[1718940167932,0.89577946,3512.0,3510.8,0.676049]
[1718940168101,2.07176023,3511.9,3510.8,0.676049]
[1718940168304,0.49327946,3511.8,3510.8,0.676049]
[1718940168534,2.07176023,3511.7,3510.8,0.676049]
[1718940168837,0.49327946,3511.6,3510.9,0.7436539]
[1718940169028,0.49327946,3511.6,3511.0,2.3073]
[1718940169233,0.4025,3512.0,3511.0,2.3073]
[1718940169537,2.07173516,3511.9,3511.0,5.3073]
[1718940169719,0.4932634,3511.8,3511.0,5.3073]
[1718940169926,2.07173516,3511.7,3511.0,5.3073]
[1718940170121,0.4932634,3511.6,3511.0,5.3073]
[1718940170641,0.52814986,3511.9,3511.0,5.3073]
[1718940170945,2.0717229,3511.8,3511.0,5.3073]
[1718940171145,2.314,3512.1,3511.0,5.3073]
[1718940171350,2.56476968,3512.0,3511.0,5.3073]
[1718940171653,4.5409,3512.5,3511.1,2.3888]
[1718940171811,2.56463048,3512.4,3511.2,0.82374539]
[1718940172016,2.56463048,3512.3,3511.2,3.82374539]
[1718940172215,2.56463048,3512.2,3511.2,3.82374539]
[1718940172442,2.56462427,3512.1,3511.3,0.62125454]
[1718940172651,1.63143486,3512.0,3511.3,0.62125454]
[1718940172859,0.49318937,3512.4,3511.3,0.62125454]
[1718940173958,0.49318937,3512.4,3511.4,2.4229]
[1718940174259,0.49318937,3512.7,3511.5,0.68678999]
[1718940174460,0.49318937,3512.7,3511.5,3.68678999]
[1718940175528,2.2972,3512.8,3511.6,5.4229]
[1718940175721,0.49312952,3512.7,3511.7,0.910969]
[1718940176032,0.49312952,3512.7,3511.7,3.910969]
[1718940177386,1.713,3512.6,3511.7,3.0]
[1718940177553,1.713,3512.6,3511.6,2.3189]
[1718940178454,0.49312952,3512.7,3511.6,2.3189]
[1718940178776,2.2972,3512.8,3511.6,2.3189]